[Event "17th Paracin Open 2024"]
[Site "Paracin"]
[Date "2024.07.05"]
[Round "3.12"]
[White "Antal, Gergely"]
[Black "Filip, Andrei"]
[Result "1-0"]
[ECO "B40"]
[WhiteElo "2580"]
[BlackElo "2280"]
[Annotator "TA"]
[PlyCount "67"]
[EventDate "2024.07.02"]
[EventType "swiss"]
[EventCountry "SRB"]
[SourceTitle "playchess.com"]
[Source "ChessBase"]
[SourceQuality "1"]
[TimeControl "5400+30"]

{[%evp 9,67,16,12,0,41,22,32,43,75,39,70,80,115,89,88,88,96,85,79,84,94,91,94,104,96,97,118,122,158,181,180,181,188,181,195,177,180,181,336,360,366,353,360,370,338,357,366,358,384,392,531,538,553,553,525,512,591,605,946,923]} 1. e4 {[%emt 0:00:03]} c5 {[%emt 0:00:10]} 2. Nf3 {[%emt 0:00:05]} e6 {[%emt 0:00:04][%cal Be7e6,Be6d5,Bd5d4][%mdl 32]} 3. b3 {[%emt 0:00:05]} a6 {[%emt 0:00:15]} 4. Bb2 {[%emt 0:00:25]} d5 {[%emt 0:00:37]} 5. exd5 {[%emt 0:00:18]} exd5 {[%emt 0:00:06]} 6. Qe2+ {[%emt 0:00:20]} Qe7 {[%emt 0:07:35]} 7. Nc3 {[%emt 0:00:40]} Nf6 {[%emt 0:03:22]} 8. O-O-O {[%emt 0:00:44] White is slightly better.} d4 {[%emt 0:03:33]} 9. Na4 {[%emt 0:03:41] aiming for Nb6.} Qxe2 {[%emt 0:13:22]} 10. Bxe2 {[%emt 0:00:07]} Nbd7 {[%emt 0:01:36] Against Nb6} 11. Rhe1 {[%emt 0:14:18]} Be7 {[%emt 0:01:51]} 12. Ba3 {[%emt 0:00:28] Black must now prevent Bc4.} Kf8 {[%emt 0:08:40][%cal Be8f8,Bf8e7,Be7d8,Bd8c7][%mdl 32]} (12... b5 $2 13. Nxd4 bxa4 (13... cxd4 $2 {perishes.} 14. Bf3 $18) 14. Bf3 $18) 13. Bd3 {[%emt 0:13:04][%cal Of3d4]} b5 {[%emt 0:08:48] [#]} 14. Rxe7 $1 {[%emt 0:00:16]} Kxe7 {[%emt 0:01:13]} 15. Nxc5 {[%emt 0:00:05] Nb7+ would now be deadly.} ({Not} 15. Bxc5+ Nxc5 16. Nxc5 Kd6 17. Ne4+ Nxe4 18. Bxe4 Rb8 19. Nxd4 h5 $17) 15... Kd8 {[%emt 0:01:04]} 16. Nxd4 {[%emt 0:02:22] White has more active pieces. The black rooks are passive.} Nxc5 {[%emt 0:05:50]} 17. Bxc5 {[%emt 0:00:03]} Bb7 {[%emt 0:00:47] Black is weak on the dark squares} 18. Nf5 {[%emt 0:12:54]} Bxg2 {[%emt 0:07:22]} 19. Nxg7 {[%emt 0:03:40]} Kc7 {[%emt 0:11:50] [#]} 20. Bd4 $1 {[%emt 0:03:34] A strong pair of Bishops.} Nd7 {[%emt 0:00:17]} 21. Re1 {[%emt 0:02:04]} Rhf8 {[%emt 0:06:45]} 22. Bxh7 {[%emt 0:04:27]} Rh8 {[%emt 0:00:43]} 23. Bf5 {[%emt 0:00:38] And now Re7 would win.} Rxh2 $2 {[%emt 0:00:44]} (23... Bh3 24. Be4 Rag8) 24. Re7 $18 {[%emt 0:00:48][%csl LRd7,LRf7]} Rh1+ {[%emt 0:00:11]} 25. Kb2 {[%emt 0:00:02]} Rd8 {[%emt 0:01:21]} 26. Rxf7 {[%emt 0:01:15]} Bd5 {[%emt 0:02:54]} 27. Ne6+ {[%emt 0:04:26]} Bxe6 {[%emt 0:00:25]} 28. Bxe6 {[%emt 0:00:03]} Kd6 {[%emt 0:00:53]} 29. Bf5 {[%emt 0:02:59]} Re1 {[%emt 0:07:31]} 30. Bc3 {[%emt 0:10:33] White is clearly winning.} Nb8 {[%emt 0:02:55]} 31. Rf6+ {[%emt 0:01:09]} Ke7 {[%emt 0:00:59][%cal Ob5b4]} 32. Rb6 {[%emt 0:00:48]} Kf7 {[%emt 0:00:26]} 33. f4 {[%emt 0:01:52]} Rf1 {[%emt 0:00:44]} 34. Rb7+ {[%emt 0:00:46] Black did not feel at home in the position after the opening.   Weighted Error Value: White=0.03 (flawless) /Black=0.25 (precise) .  Mistake:       	---       	Black=1      Inaccurate:     	---       	Black=5      OK:         	White=19    	Black=9      Best:        	White=1     	Black=5      Brilliant:      	White=1     	---} 1-0

[Event "17th Paracin Open 2024"]
[Site "Paracin"]
[Date "2024.07.05"]
[Round "3.13"]
[White "Djukic, Nikola"]
[Black "Albers, Sasa"]
[Result "1/2-1/2"]
[ECO "B12"]
[WhiteElo "2532"]
[BlackElo "2309"]
[Annotator "TA"]
[PlyCount "120"]
[EventDate "2024.07.02"]
[EventType "swiss"]
[EventCountry "SRB"]
[SourceTitle "playchess.com"]
[Source "ChessBase"]
[SourceQuality "1"]
[TimeControl "5400+30"]

{[%evp 26,120,29,-7,-12,-40,-37,-57,-25,-23,-22,-30,0,0,0,0,0,0,56,36,54,28,48,39,48,48,52,56,46,52,73,75,106,16,12,21,18,12,10,15,18,10,12,14,11,16,23,0,0,0,0,0,33,33,33,33,33,33,33,33,33,27,27,18,27,14,27,14,14,14,15,0,0,0,0,0,0,0,0,0,0,0,0,0,0,0,0,0,0,0,0,0,0,0,0,-1,0]} 1. e4 {[%emt 0:00:03]} c6 {[%emt 0:02:45]} 2. d4 {[%emt 0:00:09]} d5 {[%emt 0:00:04]} 3. e5 {[%emt 0:00:07]} c5 {[%emt 0:00:10]} 4. c3 {[%emt 0:00:15]} Nc6 {[%emt 0:00:12]} 5. Be2 {[%emt 0:00:12]} a6 {[%emt 0:00:40]} 6. a3 {[%emt 0:08:26] B12: Caro-Kann: Advance Variation.} cxd4 $146 {[%emt 0:14:00]} ({Predecessor:} 6... Bf5 7. Be3 e6 8. Nd2 Be7 9. g4 Bg6 10. Nh3 f6 11. f4 fxe5 12. fxe5 Bh4+ {0-1 Ribera Veganzones,J (2192)-Alcala Gonzalez,C (2283) Barcelona Holy Week 2024 (6)}) 7. cxd4 {[%emt 0:00:09]} Bf5 {[%emt 0:01:04]} 8. Nf3 {[%emt 0:06:37]} e6 {[%emt 0:00:16]} 9. O-O {[%emt 0:00:06]} Nge7 {[%emt 0:04:12]} 10. b4 {[%emt 0:06:38]} Nc8 {[%emt 0:10:10]} 11. Be3 {[%emt 0:13:37]} Be7 {[%emt 0:01:53]} 12. Nbd2 {[%emt 0:01:24]} O-O {[%emt 0:02:13]} 13. Nb3 {[%emt 0:07:42]} Bg4 {[%emt 0:09:37]} 14. Nc5 {[%emt 0:06:50]} b5 {[%emt 0:09:44]} 15. Rc1 {[%emt 0:04:38]} Nb6 {[%emt 0:05:06]} 16. Nxa6 {[%emt 0:10:53]} Bxf3 {[%emt 0:06:29]} (16... Nc4 $5 17. a4 bxa4 $11 (17... Rxa6 18. axb5 Rb6 19. bxc6 $16)) 17. gxf3 {[%emt 0:02:00]} Nc4 {[%emt 0:02:10]} 18. Bxc4 {[%emt 0:04:56]} dxc4 {[%emt 0:07:05]} (18... bxc4 $5 19. b5 $8 Bxa3 $11) 19. a4 $1 {[%emt 0:00:05]} Rxa6 {[%emt 0:05:21]} 20. axb5 {[%emt 0:00:09]} Rb6 {[%emt 0:01:15]} 21. bxc6 {[%emt 0:02:31]} Rxc6 {[%emt 0:04:24]} ({Black should play} 21... Qd5 $11) 22. b5 $14 {[%emt 0:00:11]} Rc8 {[%emt 0:00:05]} 23. Qe2 {[%emt 0:10:12]} Qd5 {[%emt 0:00:51]} 24. b6 {[%emt 0:01:59]} Rc6 {[%emt 0:03:22]} 25. Rc2 {[%emt 0:02:21]} Rb8 {[%emt 0:01:22]} 26. Rfc1 {[%emt 0:03:21]} Ba3 {[%emt 0:01:15]} 27. Rb1 {[%emt 0:00:19]} c3 {[%emt 0:01:24]} 28. Rb5 {[%emt 0:00:10]} Qd8 {[%emt 0:01:54]} 29. Qd3 {[%emt 0:00:54]} ({Don't play} 29. b7 $6 Qd7 $11) (29. d5 $16 exd5 30. Qd3) 29... Rbxb6 $11 {[%emt 0:02:57]} 30. Rxb6 {[%emt 0:01:20]} (30. Rxc3 $2 {is the wrong capture.} Rxc3 31. Qxc3 Rxb5 $19) 30... Qxb6 {[%emt 0:00:08]} 31. Rxc3 {[%emt 0:00:52]} Rxc3 {[%emt 0:00:12]} 32. Qxc3 {[%emt 0:00:06]} Qb1+ {[%emt 0:00:53]} 33. Kg2 {[%emt 0:00:04]} Qg6+ {[%emt 0:01:51]} 34. Kf1 {[%emt 0:00:06]} Qb1+ {[%emt 0:00:17]} 35. Ke2 {[%emt 0:00:07]} Qa2+ {[%emt 0:01:21]} 36. Bd2 {[%emt 0:00:33]} h6 {[%emt 0:00:53]} 37. Qc8+ {[%emt 0:01:02]} Kh7 {[%emt 0:00:05]} 38. Qa6 {[%emt 0:00:05]} Qb2 {[%emt 0:00:57]} 39. Qd3+ {[%emt 0:01:45]} Kg8 {[%emt 0:00:00]} 40. Kf1 {[%emt 0:00:13]} Be7 {[%emt 0:00:39]} 41. Kg2 {[%emt 0:00:33]} h5 {[%emt 0:00:48]} 42. Be3 {[%emt 0:00:17]} Qb7 {[%emt 0:00:43]} 43. Qe4 {[%emt 0:00:18]} Qd7 {[%emt 0:00:01]} 44. f4 {[%emt 0:01:52]} g6 {[%emt 0:00:33]} 45. h3 {[%emt 0:00:17]} Kg7 {[%emt 0:00:18]} 46. Kg3 {[%emt 0:04:00]} Bd8 {[%emt 0:00:14]} 47. Qa8 {[%emt 0:01:16]} Be7 {[%emt 0:00:53]} 48. f5 {[%emt 0:00:34]} gxf5 {[%emt 0:01:04]} 49. Qf3 {[%emt 0:00:11]} h4+ {[%emt 0:00:21]} 50. Kh2 {[%emt 0:00:05]} Kg8 {[%emt 0:00:45]} 51. Bh6 {[%emt 0:01:07]} Kh7 {[%emt 0:00:32]} 52. Qh5 {[%emt 0:00:17]} Kg8 {[%emt 0:00:10]} 53. Qd1 {[%emt 0:01:05]} Kh7 {[%emt 0:00:07]} 54. Qh5 {[%emt 0:01:26]} Kg8 {[%emt 0:00:04]} 55. Be3 {[%emt 0:00:14]} (55. Qd1 $5 Kh7 $8 56. Qh5 $11) 55... Qd5 {[%emt 0:00:47]} 56. f3 {[%emt 0:00:05]} Qa2+ {[%emt 0:00:37]} 57. Kg1 $1 {[%emt 0:00:13]} Qb1+ {[%emt 0:00:42]} 58. Kg2 {[%emt 0:00:11]} Qb2+ {[%emt 0:00:49]} 59. Kg1 {[%emt 0:00:45]} Qb1+ {[%emt 0:00:18]} 60. Kg2 {[%emt 0:00:06]} Qb2+ {[%emt 0:00:04]} (60... Qe1 $5 61. Bf2 $8 Qd2 $11) 1/2-1/2

[Event "17th Paracin Open 2024"]
[Site "Paracin"]
[Date "2024.07.05"]
[Round "3.14"]
[White "Akbas, Umut Ata"]
[Black "Apoorv Kamble"]
[Result "1-0"]
[ECO "D11"]
[WhiteElo "2437"]
[BlackElo "2369"]
[Annotator "TA"]
[PlyCount "65"]
[EventDate "2024.07.02"]
[EventType "swiss"]
[EventCountry "SRB"]
[SourceTitle "playchess.com"]
[Source "ChessBase"]
[SourceQuality "1"]
[TimeControl "5400+30"]

{[%evp 9,65,29,32,33,52,25,38,38,45,38,40,40,41,22,96,72,87,86,120,110,146,154,156,137,140,146,280,283,296,243,251,258,247,277,254,149,197,185,518,507,1093,1085,1064,1058,1054,1041,948,900,1370,1185,29990,945,945,980,29988,29989,29988,29989]} 1. d4 {[%emt 0:01:22]} d5 {[%emt 0:00:07]} 2. c4 {[%emt 0:00:06]} c6 {[%emt 0:00:03]} 3. Nf3 {[%emt 0:00:07]} Nf6 {[%emt 1:31:50]} 4. e3 {[%emt 0:00:08]} a6 {[%emt 0:00:00]} 5. Nbd2 {[%emt 0:00:09]} Bf5 {[%emt 0:00:00]} 6. Nh4 {[%emt 0:00:20]} Bg6 {[%emt 0:00:00]} 7. g4 {[%emt 0:00:34][%cal Bg2g4,Bg4g5][%mdl 32]} e6 {[%emt 0:00:00]} 8. Nxg6 {[%emt 0:01:28] White is slightly better.} hxg6 {[%emt 0:00:00]} 9. g5 {[%emt 0:00:07]} Ng8 {[%emt 0:00:00]} 10. h4 {[%emt 0:06:53]} Nd7 {[%emt 0:00:00]} 11. Bd3 {[%emt 0:08:18]} b5 {[%emt 0:00:00]} (11... Ne7 $11) 12. cxd5 {[%emt 0:01:25] Black is now going downhill.} cxd5 {[%emt 0:00:00]} 13. a4 {[%emt 0:02:29]} b4 {[%emt 0:00:00]} 14. Qe2 {[%emt 0:08:31]} Nb8 {[%emt 0:00:00]} 15. e4 {[%emt 0:06:02]} Ne7 {[%emt 0:00:00]} 16. Nf3 dxe4 {[%emt 0:00:00]} 17. Bxe4 {[%emt 0:03:22]} Ra7 {[%emt 0:07:00]} (17... Nbc6 $16 {was worth a try.} 18. Bd2 Ra7) 18. Bf4 $18 {[%emt 0:17:09]} Nf5 {[%emt 0:00:00]} 19. Bxf5 {[%emt 0:00:30]} gxf5 {[%emt 0:00:00] [#]} 20. g6 $1 {[%emt 0:41:30][%mdl 512] Rc1 is the strong threat.} Nc6 {[%emt 0:00:00]} 21. gxf7+ Rxf7 {[%emt 0:00:00]} 22. Ng5 {[%emt 0:00:00]} (22. Qxe6+ $2 Re7 23. Ng5 Nxd4 $19 (23... Rxe6+ $2 24. Nxe6 Qf6 25. O-O-O $19) (23... Qd5 $2 24. O-O-O $19)) ({White should try} 22. Qxa6 $18 Qd5 23. Qa8+ Kd7 24. Rh3) 22... Nxd4 {[%emt 0:00:00]} (22... Qd5 $16 23. O-O-O (23. Qxe6+ $2 Re7 $19) 23... Rf6 24. Qxa6 Be7) 23. Qxa6 {[%emt 0:00:00][%cal Oa1c1] Hoping for Rc1!} Rd7 $2 {[%emt 0:00:00]} (23... Bc5 {is more resistant.}) 24. Rc1 {[%emt 0:00:00][%cal Oc1c8] Threatens to win with Rc8!} (24. Nxe6 $2 Nxe6 (24... Re7 25. O-O-O $11) 25. Be3 (25. Qxe6+ $2 Re7 $19) 25... Kf7 $19 (25... Rxh4 $2 26. Qxe6+ Qe7 27. Qg6+ Kd8 28. Rxh4 $18)) 24... Qf6 {[%emt 0:00:00]} (24... Bd6 $142 25. Be3 (25. Rc8 Bxf4 26. Rxd8+ Rxd8 $18) 25... O-O 26. Bxd4 Re8) 25. Rc8+ {[%emt 0:00:00]} Rd8 {[%emt 0:00:28]} 26. Bc7 {[%emt 0:00:00]} Be7 {[%emt 0:01:02]} 27. Bxd8 {[%emt 0:00:00]} Bxd8 {[%emt 0:00:10]} 28. Qd6 {[%emt 0:00:00]} Rh5 {[%emt 0:01:21]} 29. Rh3 {[%emt 0:00:00][%cal Od6c7] aiming for Qc7!} e5 {[%emt 0:00:53] [#]} 30. Rxd8+ {[%emt 0:00:00]} Qxd8 {[%emt 0:00:17]} 31. Qg6+ {[%emt 0:00:00]} (31. Qxb4 $2 {too greedy.} Nc2+ 32. Ke2 Nxb4 $19) ({Weaker is} 31. Qxe5+ Qe7 32. Qxe7+ Kxe7 $16) 31... Ke7 {[%emt 0:00:05]} 32. Qxg7+ {[%emt 0:00:00]} Kd6 {[%emt 0:00:22]} 33. Nf7+ {[%emt 0:00:00] Weighted Error Value: White=0.12 (very precise) /Black=0.93.  Mistake:       	White=1     	Black=5      Inaccurate:     	White=1     	Black=2      OK:         	White=6     	Black=6      Best:        	White=5     	---} 1-0

[Event "17th Paracin Open 2024"]
[Site "Paracin"]
[Date "2024.07.05"]
[Round "3.15"]
[White "Ivanov, Mikhail M"]
[Black "Sedlak, Nikola"]
[Result "1/2-1/2"]
[ECO "E61"]
[WhiteElo "2248"]
[BlackElo "2426"]
[Annotator "TA"]
[PlyCount "79"]
[EventDate "2024.07.02"]
[EventType "swiss"]
[EventCountry "SRB"]
[SourceTitle "playchess.com"]
[Source "ChessBase"]
[SourceQuality "1"]
[TimeControl "5400+30"]

{[%evp 9,79,36,41,20,37,36,41,39,24,17,23,-20,-20,-24,0,0,2,-2,14,15,29,43,38,28,43,-38,-47,-50,-6,-74,-81,-84,-81,-75,-62,-64,-66,-66,-69,-82,-39,-48,-51,-82,-57,-58,-10,-25,-7,-60,-60,-63,-60,-53,-54,-62,-24,-24,-27,-88,-71,-83,-43,-41,-35,-93,-90,-375,-375,-442,-77,-64]} 1. Nf3 {[%emt 0:00:03]} Nf6 {[%emt 0:00:15]} 2. c4 {[%emt 0:00:30]} d6 {[%emt 0:00:26]} 3. d4 {[%emt 0:00:19]} g6 {[%emt 0:01:31]} 4. Nc3 {[%emt 0:00:54]} Bf5 {[%emt 0:00:23]} 5. Qb3 {[%emt 0:15:54]} b6 {[%emt 0:02:25]} 6. g3 {[%emt 0:03:29]} Nc6 {[%emt 0:00:08]} 7. Bg2 {[%emt 0:01:33][%cal Oe2e4]} Bg7 {[%emt 0:02:55]} 8. Qa4 {[%emt 0:12:13][%cal Of3e5] [#] Black must now prevent Ne5! White is slightly better.} Bd7 {[%emt 0:00:18][%cal Oc6d4]} 9. Qd1 {[%emt 0:00:08]} O-O {[%emt 0:00:39]} 10. d5 {[%emt 0:07:06]} Na5 {[%emt 0:00:54]} 11. Nd2 {[%emt 0:00:05]} c5 {[%emt 0:06:06]} (11... c6 {is more complex.} 12. b4 Nxc4 13. dxc6 Ng4) 12. O-O {[%emt 0:04:17]} a6 {[%emt 0:02:32]} 13. a4 {[%emt 0:07:50]} Rb8 {[%emt 0:02:49]} 14. Qc2 {[%emt 0:01:27]} b5 {[%emt 0:07:47]} 15. axb5 {[%emt 0:00:20]} (15. cxb5 {keeps more tension.} c4 16. bxa6 Qb6 17. Nf3) 15... axb5 {[%emt 0:00:08]} 16. cxb5 {[%emt 0:00:05]} Bxb5 {[%emt 0:01:17]} 17. Nxb5 {[%emt 0:00:43]} ({White should play} 17. b3 $14) 17... Rxb5 $15 {[%emt 0:00:10]} 18. Ra2 {[%emt 0:05:25]} Qb8 {[%emt 0:01:13][%cal Oc5c4]} 19. Nb1 {[%emt 0:06:00]} (19. e4 $11 {remains equal.}) 19... Nb3 $17 {[%emt 0:01:21]} 20. Nc3 {[%emt 0:00:08]} Rb4 {[%emt 0:11:17]} 21. Bg5 {[%emt 0:02:56]} h6 {[%emt 0:01:45]} 22. Bxf6 {[%emt 0:01:00]} Bxf6 {[%emt 0:01:08]} 23. e3 {[%emt 0:04:38]} c4 {[%emt 0:02:44]} 24. Rd1 {[%emt 0:03:26]} Rc8 {[%emt 0:04:26]} 25. h4 {[%emt 0:03:04][%cal Oh4h5]} Nc5 {[%emt 0:03:53]} 26. Bf1 {[%emt 0:00:34] Inhibits Nd3.} Qb7 {[%emt 0:03:46]} 27. h5 {[%emt 0:03:13]} gxh5 {[%emt 0:01:58]} (27... g5 $15) 28. Qf5 $11 {[%emt 0:01:07]} Ra8 {[%emt 0:02:48]} (28... Rxb2 $2 29. Rxb2 Qxb2 30. Qxc8+ $18) 29. Qxh5 {[%emt 0:11:27]} (29. Rxa8+ $11 Qxa8 30. Rd2) 29... Rxb2 $15 {[%emt 0:02:23]} 30. Qg4+ {[%emt 0:00:34]} Kf8 $1 {[%emt 0:00:12]} 31. Rxa8+ {[%emt 0:00:30]} Qxa8 {[%emt 0:00:09]} 32. Ne4 {[%emt 0:00:24]} (32. Qxc4 $2 {perishes.} Rc2 33. Qf4 Rxc3 $19 (33... Bxc3 $2 34. Qxh6+ Bg7 35. Qh3 $19)) 32... Nxe4 {[%emt 0:00:54]} (32... h5 $5 33. Qf3 Nxe4 34. Qxe4 c3 $17) 33. Qxe4 {[%emt 0:00:04] White is weak on the dark squares} c3 $36 {[%emt 0:00:35][%mdl 2048] Threatens to win with ...Qa2. Black is more active.} 34. Rc1 {[%emt 0:00:26]} (34. Qf5 $11) 34... Rd2 {[%emt 0:10:47][%cal Oa8a2]} 35. Bd3 {[%emt 0:00:18]} h5 {[%emt 0:08:33][%cal Oe7e6]} (35... e6 {simplifies} 36. Rb1 Rb2 37. dxe6 Qxe4 38. Bxe4 fxe6 39. Rxb2 cxb2 40. Kf1 d5) 36. Qf5 {[%emt 0:00:24][%cal Og1g2]} h4 {[%emt 0:09:54]} 37. g4 {[%emt 0:00:13]} (37. gxh4 $15 Bxh4 38. Rf1) 37... h3 {[%emt 0:00:18] Hoping for ...Be5.} 38. g5 $2 {[%emt 0:00:28][%mdl 8192]} (38. Rb1 $17 {keeps fighting.}) 38... Be5 $19 {[%emt 0:00:22]} 39. Be4 {[%emt 0:00:47][%cal Og5g6] [#]} h2+ $2 {[%emt 0:00:26]} (39... c2 $1 $19 {and Black stays clearly on top. ( -> ...Rd1+)} 40. Bxc2 Qxd5 41. Qc8+ Kg7 42. Qxh3 Rxc2 43. Qh6+ Kg8) 40. Kg2 {[%emt 0:00:55] Weighted Error Value: White=0.33/Black=0.23 (precise) .  Loses game:     	White=1     	---        Missed win:     	---       	Black=1      Mistake:       	White=5     	Black=1      Inaccurate:     	White=2     	Black=5      OK:         	White=11    	Black=9      Best:        	White=3     	Black=3      Strong:       	---       	Black=1} 1/2-1/2

[Event "17th Paracin Open 2024"]
[Site "Paracin"]
[Date "2024.07.05"]
[Round "3.16"]
[White "Itgelt, Khuyagtsogt"]
[Black "Alok Sinha"]
[Result "1-0"]
[ECO "E01"]
[WhiteElo "2411"]
[BlackElo "2245"]
[Annotator "RC"]
[PlyCount "61"]
[EventDate "2024.07.02"]
[EventType "swiss"]
[EventCountry "SRB"]
[SourceTitle "playchess.com"]
[Source "ChessBase"]
[SourceQuality "1"]
[TimeControl "5400+30"]

1. d4 {[%emt 0:00:11]} Nf6 {[%emt 0:00:15]} 2. c4 {[%emt 0:00:34]} e6 {[%emt 0:00:06]} 3. Nf3 {[%emt 0:00:35]} d5 {[%emt 0:01:31]} 4. Nc3 {[%emt 0:01:46]} c6 {[%emt 0:00:06]} 5. g3 {[%emt 0:00:56]} dxc4 {[%emt 0:00:38]} 6. Bg2 {[%emt 0:00:28]} Bb4 {[%emt 0:02:29]} 7. O-O {[%emt 0:02:29]} Nbd7 {[%emt 0:01:51]} 8. a4 {[%emt 0:01:00]} a5 {[%emt 0:03:11]} 9. Qc2 {[%emt 0:02:17]} O-O {[%emt 0:02:40]} 10. Rd1 {[%emt 0:01:49]} Qe7 {[%emt 0:06:08]} 11. Bg5 {[%emt 0:05:49]} h6 {[%emt 0:14:05]} 12. Bxf6 {[%emt 0:01:35]} Qxf6 {[%emt 0:00:29]} 13. Na2 {[%emt 0:01:43]} Bd6 {[%emt 0:08:11]} 14. Qxc4 {[%emt 0:09:46]} e5 {[%emt 0:08:06]} 15. Nc3 {[%emt 0:06:49]} Qe7 {[%emt 0:12:46]} 16. Nh4 {[%emt 0:10:15]} Nb6 {[%emt 0:14:52]} 17. Qb3 {[%emt 0:00:59]} Bc7 {[%emt 0:01:12]} 18. d5 {[%emt 0:05:50]} cxd5 {[%emt 0:07:49]} 19. Bxd5 {[%emt 0:01:31]} Nxd5 {[%emt 0:08:36]} 20. Nxd5 {[%emt 0:00:18]} Qe6 {[%emt 0:00:01]} 21. Nf5 {[%emt 0:02:07]} Bd8 {[%emt 0:01:09]} 22. e4 {[%emt 0:01:45]} g6 {[%emt 0:02:00]} 23. Nfe3 {[%emt 0:01:51]} h5 {[%emt 0:01:33]} 24. h4 {[%emt 0:03:02]} f5 {[%emt 0:01:10]} 25. Rac1 {[%emt 0:03:28]} Kh8 {[%emt 0:01:24]} 26. Qa3 {[%emt 0:01:06]} Kg8 {[%emt 0:00:35]} 27. Nc7 {[%emt 0:00:51]} Bxc7 {[%emt 0:00:05]} 28. Rxc7 {[%emt 0:00:04]} f4 {[%emt 0:00:51]} 29. Nd5 {[%emt 0:04:48]} Rf7 {[%emt 0:00:26]} 30. Nxf4 {[%emt 0:01:09]} exf4 {[%emt 0:00:38]} 31. Rd8+ {[%emt 0:00:04]} 1-0

[Event "17th Paracin Open 2024"]
[Site "Paracin"]
[Date "2024.07.05"]
[Round "3.17"]
[White "Polschikov, Alexey"]
[Black "Pranav K P"]
[Result "1/2-1/2"]
[ECO "E04"]
[WhiteElo "2376"]
[BlackElo "2223"]
[Annotator "TA"]
[PlyCount "88"]
[EventDate "2024.07.02"]
[EventType "swiss"]
[EventCountry "SRB"]
[SourceTitle "playchess.com"]
[Source "ChessBase"]
[SourceQuality "1"]
[TimeControl "5400+30"]

{[%evp 14,88,0,0,-7,-18,0,0,0,0,0,0,0,0,0,0,0,0,97,98,100,100,85,67,71,61,65,68,72,65,72,71,72,68,65,59,100,85,103,91,131,101,110,120,116,111,175,117,183,124,169,167,204,204,197,93,84,84,100,91,83,82,105,91,104,66,60,0,88,94,134,98,128,14,43,8,8]} 1. d4 {[%emt 0:02:03]} Nf6 {[%emt 0:00:09]} 2. c4 {[%emt 0:00:11]} e6 {[%emt 0:00:07]} 3. g3 {[%emt 0:00:23]} d5 {[%emt 0:00:36]} 4. Bg2 {[%emt 0:00:09]} dxc4 {[%emt 0:01:07]} 5. Nf3 {[%emt 0:00:19]} c6 {[%emt 0:00:27]} 6. O-O {[%emt 0:01:31]} b5 {[%emt 0:00:23]} 7. Ne5 {[%emt 0:03:46]} Bb7 {[%emt 0:00:51]} 8. Nc3 {[%emt 0:00:35]} a6 {[%emt 0:03:12]} 9. b3 {[%emt 0:00:24]} cxb3 {[%emt 0:03:40]} 10. axb3 {[%emt 0:00:06]} Be7 {[%emt 0:02:27]} 11. Bb2 {[%emt 0:00:41]} O-O {[%emt 0:01:17]} 12. Ne4 {[%emt 0:00:46]} Nxe4 {[%emt 0:24:08]} 13. Bxe4 {[%emt 0:00:11]} a5 {[%emt 0:02:07]} 14. Qc2 {[%emt 0:03:30][%csl LRc6,LRh7]} h6 {[%emt 0:04:56]} 15. Rfd1 {[%emt 0:07:02]} Na6 {[%emt 0:01:40]} (15... Qc7 $11 {remains equal.}) 16. Nxc6 $16 {[%emt 0:03:27] White is much more active.} (16. Bxc6 Nb4 17. Qe4 Nxc6 18. Nxc6 Bxc6 19. Qxc6 Rb8 $14) 16... Bxc6 {[%emt 0:01:02]} 17. Qxc6 {[%emt 0:00:35]} Nc7 {[%emt 0:03:34] Black is weak on the light squares} 18. Rdc1 {[%emt 0:08:54]} Ra7 {[%emt 0:03:08]} 19. e3 {[%emt 0:19:12]} Qd6 {[%emt 0:05:39]} 20. Bc3 {[%emt 0:04:36] A strong pair of Bishops.} b4 {[%emt 0:05:07] And now ...Qxc6 would win.} 21. Bd2 $36 {[%emt 0:01:25][%mdl 2048] White has the initiative.} Qxc6 {[%emt 0:03:11]} 22. Bxc6 {[%emt 0:01:58]} Rb8 {[%emt 0:02:41]} 23. Kf1 {[%emt 0:02:21][%cal Bg1f1,Bf1e2,Be2d3][%mdl 32]} Nb5 {[%emt 0:02:08]} 24. Ke2 {[%emt 0:00:29]} Na3 {[%emt 0:09:38]} 25. Ba4 {[%emt 0:01:08]} Bd8 {[%emt 0:03:01]} 26. Kd3 {[%emt 0:03:11]} Kf8 {[%emt 0:00:59]} 27. Rc6 {[%emt 0:02:11]} Rc7 {[%emt 0:02:01]} 28. Rxc7 {[%emt 0:00:42]} Bxc7 {[%emt 0:00:02]} 29. Rc1 {[%emt 0:00:08]} Bd8 {[%emt 0:02:00]} (29... Bb6 $16 30. g4 g5) 30. h4 {[%emt 0:03:20]} (30. e4 $1 $18) 30... Ke7 {[%emt 0:02:38]} (30... f5 $16 {might work better.} 31. h5 Kf7) 31. h5 {[%emt 0:00:23]} (31. e4 $1 $18) 31... Rb7 {[%emt 0:00:53]} 32. e4 {[%emt 0:03:55]} Rc7 {[%emt 0:01:58] [#]} 33. Bc6 $1 {[%emt 0:01:03]} Nb1 {[%emt 0:02:02]} 34. Rxb1 {[%emt 0:05:59]} (34. Bf4 $18 Rc8 35. d5) 34... Rxc6 $18 {[%emt 0:00:02][%mdl 4096] Endgame. KRB-KRB} 35. Rc1 {[%emt 0:00:09]} Ra6 {[%emt 0:02:31]} 36. Rc5 {[%emt 0:02:58]} Kd7 {[%emt 0:00:15]} 37. Rb5 {[%emt 0:01:03]} Be7 {[%emt 0:01:05]} 38. Rb7+ {[%emt 0:00:39]} Kd8 {[%emt 0:00:11]} 39. Kc4 {[%emt 0:03:07]} Rc6+ $1 {[%emt 0:00:17]} 40. Kd3 {[%emt 0:01:38]} Ra6 {[%emt 0:00:01] Dodges Ra7} 41. d5 {[%emt 0:03:02]} a4 {[%emt 0:01:40] Hoping for ...a3.} 42. bxa4 {[%emt 0:01:23] Threatens to win with dxe6.} (42. Bxb4 Bxb4 43. Rb8+ (43. Rxb4 $2 {perishes.} a3 $19) 43... Ke7 44. Rb7+ (44. Rxb4 $2 {is the wrong capture.} a3 $19) 44... Kd6 45. bxa4 (45. Rxb4 $2 {loses.} a3 $19) 45... Rxa4 46. Rxf7 exd5 47. exd5 Bc5 (47... Kxd5 48. Rd7+ Ke6 49. Rxg7 $11) 48. Rxg7 Bxf2 (48... Kxd5 49. g4 $15) 49. Rg6+ Kxd5 $19) 42... Rxa4 {[%emt 0:00:02] [#]} 43. Kc4 {[%emt 0:04:59]} (43. dxe6 $1 $16 fxe6 44. g4) 43... b3+ $11 {[%emt 0:00:34]} 44. Kxb3 {[%emt 0:00:11]} Rxe4 {[%emt 0:00:06] Black escapes into a draw.   Weighted Error Value: White=0.19 (very precise) /Black=0.18 (very precise) .  Mistake:       	White=4     	Black=3      Inaccurate:     	White=2     	Black=5      OK:         	White=12    	Black=15     Best:        	White=1     	Black=1      Strong:       	---       	Black=1} 1/2-1/2